fUSD/lending_fUSD_20250716
["ID","MTS","AMOUNT","RATE_DAILY","PERIOD"]
[372615075,1752706250763,-460.0,0.00019499,2]
[372615076,1752706250773,-460.0,0.00019499,2]
[372615077,1752706250782,-460.0,0.00019499,2]
[372615078,1752706250792,-460.0,0.00019499,2]
[372615079,1752706250801,-460.0,0.00019499,2]
[372615080,1752706250811,-460.0,0.00019499,2]
[372615081,1752706250820,-460.0,0.00019499,2]
[372615082,1752706250829,-460.0,0.00019499,2]
[372615083,1752706250839,-460.0,0.00019499,2]
[372615084,1752706250848,-460.0,0.00019499,2]
[372615085,1752706250858,-491.07,0.00019499,2]
[372615086,1752706250867,-460.0,0.00019499,2]
[372615087,1752706250877,-460.0,0.00019499,2]
[372615088,1752706250887,-460.0,0.00019499,2]
[372615089,1752706250896,-460.0,0.00019499,2]
[372615090,1752706250906,-460.0,0.00019499,2]
[372615091,1752706250916,-460.0,0.00019499,2]
[372615092,1752706250925,-460.0,0.00019499,2]
[372615093,1752706250935,-460.0,0.00019499,2]
[372615094,1752706250945,-460.0,0.00019499,2]
[372615095,1752706250956,-516.1,0.00019499,2]
[372615096,1752706250966,-460.0,0.00019499,2]
[372615097,1752706250976,-460.0,0.00019499,2]
[372615098,1752706250986,-500.0,0.00019499,2]
[372615099,1752706250996,-460.0,0.00019499,2]
[372615100,1752706251006,-922.79,0.00019499,2]
[372615101,1752706251015,-460.0,0.00019499,2]
[372615102,1752706251025,-460.0,0.00019499,2]
[372615103,1752706251034,-460.0,0.00019499,2]
[372615104,1752706251378,-460.0,0.00019499,2]
[372615105,1752706251389,-490.0,0.00019499,2]
[372615106,1752706251400,-751.14,0.00019499,2]
[372615107,1752706251409,-460.0,0.00019499,2]
[372615108,1752706251419,-460.0,0.00019499,2]
[372615109,1752706251429,-460.0,0.00019499,2]
[372615110,1752706251439,-460.0,0.00019499,2]
[372615111,1752706251450,-460.0,0.00019499,2]
[372615112,1752706251460,-460.0,0.00019499,2]
[372615113,1752706251469,-460.0,0.00019499,2]
[372615114,1752706251479,-1142.38,0.00019499,2]
[372615115,1752706251488,-460.0,0.00019499,2]
[372615116,1752706251499,-460.0,0.00019499,2]
[372615117,1752706251508,-460.0,0.00019499,2]
[372615118,1752706251518,-460.0,0.00019499,2]
[372615119,1752706251527,-151.0,0.00019499,2]
[372615120,1752706251536,-460.0,0.00019499,2]
[372615121,1752706251545,-460.0,0.00019499,2]
[372615122,1752706251555,-460.0,0.00019499,2]
[372615123,1752706251564,-460.0,0.00019499,2]
[372615124,1752706251574,-460.0,0.00019499,2]
[372615125,1752706251584,-460.0,0.00019499,2]
[372615126,1752706251594,-460.0,0.00019499,2]
[372615127,1752706251603,-668.18,0.00019499,2]
[372615128,1752706251613,-460.0,0.00019499,2]
[372615129,1752706251623,-151.0,0.00019499,2]
[372615130,1752706251633,-617.79,0.00019499,2]
[372615131,1752706251642,-460.0,0.00019499,2]
[372615132,1752706251651,-469.51,0.00019499,2]
[372615133,1752706251661,-460.0,0.00019499,2]
[372615134,1752706251670,-460.0,0.00019499,2]
[372615135,1752706251680,-460.0,0.00019499,2]
[372615136,1752706251690,-255.60130153,0.00019499,2]
[372615137,1752706251702,-460.0,0.00019499,2]
[372615138,1752706251712,-460.0,0.00019499,2]
[372615139,1752706251721,-460.0,0.00019499,2]
[372615140,1752706251731,-463.55,0.00019499,2]
[372615141,1752706251740,-567.24,0.00019499,2]
[372615142,1752706251750,-460.0,0.00019499,2]
[372615143,1752706251759,-460.0,0.00019499,2]
[372615144,1752706251769,-672.79,0.00019499,2]
[372615145,1752706251778,-460.0,0.00019499,2]
[372615146,1752706251789,-460.0,0.00019499,2]
[372615147,1752706251798,-460.0,0.00019499,2]
[372615148,1752706251807,-460.0,0.00019499,2]
[372615149,1752706251817,-494.01137679,0.00019499,2]
[372615150,1752706251826,-1142.99,0.00019499,2]
[372615151,1752706251836,-460.0,0.00019499,2]
[372615152,1752706251845,-556.28,0.00019499,2]
[372615153,1752706251855,-153.660606,0.00019499,2]
[372615154,1752706251864,-602.76,0.00019499,2]
[372615155,1752706251874,-151.0,0.00019499,2]
[372615156,1752706251883,-151.0,0.00019499,2]
[372615157,1752706251892,-460.0,0.00019499,2]
[372615158,1752706251902,-460.0,0.00019499,2]
[372615159,1752706251911,-460.0,0.00019499,2]
[372615160,1752706251920,-704.26,0.00019499,2]
[372615161,1752706251930,-460.0,0.00019499,2]
[372615162,1752706251939,-507.19,0.00019499,2]
[372615163,1752706251950,-460.0,0.00019499,2]
[372615164,1752706251960,-460.0,0.00019499,2]
[372615165,1752706251970,-473.51,0.00019499,2]
[372615166,1752706251979,-460.0,0.00019499,2]
[372615167,1752706251988,-460.0,0.00019499,2]
[372615168,1752706251998,-460.0,0.00019499,2]
[372615169,1752706252007,-781.95,0.00019499,2]
[372615170,1752706252016,-460.0,0.00019499,2]
[372615171,1752706252026,-460.0,0.00019499,2]
[372615172,1752706252035,-460.0,0.00019499,2]
[372615173,1752706252045,-1334.86,0.00019499,2]
[372615174,1752706252055,-460.0,0.00019499,2]
[372615175,1752706252064,-574.00514342,0.00019499,2]
[372615176,1752706252073,-460.0,0.00019499,2]
[372615177,1752706252083,-460.0,0.00019499,2]
[372615178,1752706252092,-151.0,0.00019499,2]
[372615179,1752706252102,-460.0,0.00019499,2]
[372615180,1752706252112,-460.0,0.00019499,2]
[372615181,1752706252121,-151.0,0.00019499,2]
[372615182,1752706252131,-460.0,0.00019499,2]
[372615183,1752706252140,-460.0,0.00019499,2]
[372615184,1752706252150,-460.0,0.00019499,2]
[372615185,1752706252159,-460.0,0.00019499,2]
[372615186,1752706252169,-460.0,0.00019499,2]
[372615187,1752706252178,-188.098856,0.00019499,2]
[372615188,1752706252188,-460.0,0.00019499,2]
[372615189,1752706252198,-188.098856,0.00019499,2]
[372615190,1752706252209,-460.0,0.00019499,2]
[372615191,1752706252219,-460.0,0.00019499,2]
[372615192,1752706252229,-151.0,0.00019499,2]
[372615193,1752706252240,-1015.24,0.00019499,2]
[372615194,1752706252253,-460.0,0.00019499,2]
[372615195,1752706252262,-500.0,0.00019499,2]
[372615196,1752706252272,-500.0,0.00019499,2]
[372615197,1752706252282,-151.0,0.00019499,2]
[372615198,1752706252293,-151.0,0.00019499,2]
[372615199,1752706252303,-194.747198,0.00019499,2]
[372615200,1752706252314,-151.0,0.00019499,2]
[372615201,1752706252326,-151.0,0.00019499,2]
[372615202,1752706252335,-151.0,0.00019499,2]
[372615203,1752706252345,-933.74,0.00019499,2]
[372615204,1752706252354,-648.37,0.00019499,2]
[372615205,1752706252364,-500.0,0.00019499,2]
[372615206,1752706252374,-194288.89748511,0.000195,2]
[372615207,1752706252383,-151.0,0.000195,2]
[372615208,1752706252393,-151.0,0.000195,2]
[372615209,1752706252403,-209.148344,0.000195,2]
[372615210,1752706252412,-151.0,0.000195,2]
[372615211,1752706252422,-151.0,0.000195,2]
[372615212,1752706252431,-151.0,0.000195,2]
[372615213,1752706252441,-151.0,0.000195,2]
[372615214,1752706252453,-151.0,0.000195,2]
[372615215,1752706252463,-151.0,0.000195,2]
[372615216,1752706252472,-184.864281,0.000195,2]
[372615217,1752706252482,-184.864281,0.000195,2]
[372615218,1752706252493,-151.0,0.000195,2]
[372615219,1752706252504,-151.0,0.000195,2]
[372615220,1752706252513,-188.098856,0.000195,2]
[372615221,1752706252523,-188.098856,0.000195,2]
[372615222,1752706252532,-151.0,0.000195,2]
[372615223,1752706252542,-151.0,0.000195,2]
[372615224,1752706252552,-151.0,0.000195,2]
[372615225,1752706252562,-151.0,0.000195,2]
[372615226,1752706252574,-151.0,0.000195,2]
[372615227,1752706252586,-151.0,0.000195,2]
[372615228,1752706252595,-151.0,0.000195,2]
[372615229,1752706252606,-151.0,0.000195,2]
[372615230,1752706252616,-151.0,0.000195,2]
[372615231,1752706252625,-151.0,0.000195,2]
[372615232,1752706252634,-258.97238,0.000195,2]
[372615233,1752706252644,-258.97238,0.000195,2]
[372615234,1752706252655,-439.664381,0.000195,2]
[372615235,1752706252666,-151.0,0.000195,2]
[372615236,1752706252676,-439.664381,0.000195,2]
[372615237,1752706252687,-159.525773,0.000195,2]
[372615238,1752706252697,-151.0,0.000195,2]
[372615239,1752706252710,-168.29334,0.000195,2]
[372615240,1752706252720,-168.29334,0.000195,2]
[372615241,1752706252729,-1177.0,0.00019515,2]
[372615242,1752706252739,-6965.73259063,0.00019516,2]
[372615243,1752706252750,-5888.0,0.00019519,2]
[372615244,1752706252761,-549.00516765,0.00019521,2]
[372615245,1752706252772,-500.0,0.00019522,2]
[372615246,1752706252781,-523.25769002,0.00019529,2]
[372615247,1752706252793,-460.0,0.00019536,2]
[372615248,1752706252803,-743.0,0.00019536,2]
[372615249,1752706252812,-865.21,0.00019536,2]
[372615250,1752706252822,-1941.41,0.00019536,2]
[372615251,1752706252831,-460.0,0.00019536,2]
[372615252,1752706252840,-2170.77,0.00019536,2]
[372615253,1752706252852,-680.1,0.00019536,2]
[372615254,1752706252863,-2614.33,0.00019536,2]
[372615255,1752706252874,-460.0,0.00019536,2]
[372615256,1752706252886,-460.0,0.00019536,2]
[372615257,1752706252896,-948.82,0.00019536,2]
[372615258,1752706252905,-460.0,0.00019536,2]
[372615259,1752706252915,-460.0,0.00019536,2]
[372615260,1752706252924,-898.62,0.00019536,2]
[372615261,1752706252934,-1714.66,0.00019536,2]
[372615262,1752706252944,-460.0,0.00019536,2]
[372615263,1752706252954,-2337.24,0.00019536,2]
[372615264,1752706252964,-1119.06,0.00019536,2]
[372615265,1752706252973,-182.16296821,0.00019537,2]
[372615266,1752706252983,-2832.04486046,0.00019542,2]
[372615267,1752706252992,-500.0,0.00019549,2]
[372615268,1752706253002,-1177.0,0.00019551,2]
[372615269,1752706253012,-293.823009,0.00019558,2]
[372615270,1752706253022,-6965.73259063,0.00019564,2]
[372615271,1752706253031,-1721.89691006,0.00019568,3]
[372615272,1752706253041,-1194.26,0.00019569,2]
[372615273,1752706253050,-150.0,0.00019569,2]
[372615274,1752706253061,-159.099,0.0001957,2]
[372615275,1752706253070,-500.0,0.0001957,2]
[372615276,1752706253080,-500.0,0.0001957,2]
[372615277,1752706253089,-500.0,0.0001957,2]
[372615278,1752706253099,-500.0,0.0001957,2]
[372615279,1752706253109,-500.0,0.0001957,2]
[372615280,1752706253119,-500.0,0.0001957,2]
[372615281,1752706253128,-751.14,0.0001957,2]
[372615282,1752706253138,-751.14,0.0001957,2]
[372615283,1752706253148,-751.14,0.0001957,2]
[372615284,1752706253158,-751.14,0.0001957,2]
[372615285,1752706253168,-751.14,0.0001957,2]
[372615286,1752706253178,-751.14,0.0001957,2]
[372615287,1752706253187,-1142.99,0.0001957,2]
[372615288,1752706253197,-1142.99,0.0001957,2]
[372615289,1752706253208,-1156.29528208,0.00019571,2]
[372615290,1752706253218,-12291.10798505,0.00019571,2]
[372615291,1752706253228,-500.0,0.00019576,2]
[372615292,1752706253239,-750.0,0.00019589,2]
[372615293,1752706253250,-213.11,0.0001959,2]
[372615294,1752706253260,-1636.71,0.00019597,2]
[372615295,1752706253270,-264.92,0.00019597,2]
[372615296,1752706253280,-1628.82,0.00019597,2]
[372615297,1752706253290,-684.09,0.00019597,2]
[372615298,1752706253299,-846.47,0.00019597,2]
[372615299,1752706253309,-1800.0,0.000196,7]
[372615300,1752706253321,-500.0,0.00019604,2]
[372615301,1752706253331,-2832.04486046,0.00019608,2]
[372615302,1752706253340,-460.0,0.00019608,2]
[372615303,1752706253350,-460.0,0.00019608,2]
[372615304,1752706253359,-1955.58,0.00019608,2]
[372615305,1752706253369,-460.0,0.00019608,2]
[372615306,1752706253379,-460.0,0.00019608,2]
[372615307,1752706253388,-3309.01,0.00019608,2]
[372615308,1752706253398,-2257.13,0.00019608,2]
[372615309,1752706253408,-460.0,0.00019608,2]
[372615310,1752706253418,-759.27,0.00019608,2]
[372615311,1752706253428,-1691.5,0.00019608,2]
[372615312,1752706253438,-460.0,0.00019608,2]
[372615313,1752706253447,-460.0,0.00019608,2]
[372615314,1752706253457,-643.24,0.00019608,2]
[372615315,1752706253467,-3752.14,0.00019608,2]
[372615316,1752706253476,-2355.0,0.00019608,2]
[372615317,1752706253486,-2076.21,0.00019608,2]
[372615318,1752706253495,-2107.98,0.00019608,2]
[372615319,1752706253504,-4485.96,0.00019608,2]
[372615320,1752706253514,-460.0,0.00019609,2]
[372615321,1752706253523,-629.05,0.00019609,2]
[372615322,1752706253533,-500.0,0.00019609,2]
[372615323,1752706253543,-460.0,0.00019609,2]
[372615324,1752706253552,-460.0,0.00019609,2]
[372615325,1752706253561,-460.0,0.00019609,2]
[372615326,1752706253570,-1916.78,0.00019609,2]
[372615327,1752706253580,-751.9,0.00019609,2]
[372615328,1752706253589,-3221.92,0.00019609,2]
[372615329,1752706253599,-9636.88,0.00019609,2]
[372615330,1752706253609,-1373.91615,0.00019609,2]
[372615331,1752706253618,-1441.303141,0.00019609,2]
[372615332,1752706253628,-1464.171398,0.00019609,2]
[372615333,1752706253637,-197.28803391,0.00019609,2]
[372615334,1752706253647,-1892.15,0.00019609,2]
[372615335,1752706253656,-1542.87,0.00019609,2]
[372615336,1752706253666,-2135.95,0.00019609,2]
[372615337,1752706253676,-966.15,0.00019609,2]
[372615338,1752706253685,-2567.88,0.00019609,2]
[372615339,1752706253695,-2008.17,0.00019609,2]
[372615340,1752706253704,-460.0,0.00019609,2]
[372615341,1752706253714,-7708.5,0.00019609,2]
[372615342,1752706253724,-2179.31,0.00019609,2]
[372615343,1752706253734,-1633.53,0.00019609,2]
[372615344,1752706253743,-1089.59,0.00019609,2]
[372615345,1752706253849,-503.77,0.00019609,2]
[372615346,1752706253859,-888.5,0.00019609,2]
[372615347,1752706253869,-595.09,0.00019609,2]
[372615348,1752706253879,-1023.54,0.00019609,2]
[372615349,1752706253888,-867.61,0.00019609,2]
[372615350,1752706253898,-1991.81,0.00019609,2]
[372615351,1752706253908,-1290.91,0.00019609,2]
[372615352,1752706253917,-4474.6,0.00019609,2]
[372615353,1752706253927,-460.0,0.00019609,2]
[372615354,1752706253936,-460.0,0.00019609,2]
[372615355,1752706253947,-4113.51,0.00019609,2]
[372615356,1752706253959,-8879.34,0.00019609,2]
[372615357,1752706253968,-10268.13,0.00019609,2]
[372615358,1752706253978,-3140.38,0.00019609,2]
[372615359,1752706253987,-1368.64,0.00019609,2]
[372615360,1752706253997,-213.11,0.0001961,2]
[372615361,1752706254006,-6965.73259063,0.00019613,2]
[372615362,1752706254017,-460.0,0.00019621,2]
[372615363,1752706254026,-779.02,0.00019621,2]
[372615364,1752706254035,-460.0,0.00019621,2]
[372615365,1752706254044,-387.9778474,0.00019621,2]
[372615366,1752706254054,-460.0,0.00019621,2]
[372615367,1752706254063,-460.0,0.00019621,2]
[372615368,1752706254072,-509.23,0.00019621,2]
[372615369,1752706254081,-460.0,0.00019621,2]
[372615370,1752706254091,-460.0,0.00019621,2]
[372615371,1752706254100,-697.81,0.00019621,2]
[372615372,1752706254109,-460.0,0.00019621,2]
[372615373,1752706254123,-460.0,0.00019621,2]
[372615374,1752706254132,-460.0,0.00019621,2]
[372615375,1752706254142,-460.0,0.00019621,2]
[372615376,1752706254151,-460.0,0.00019621,2]
[372615377,1752706254160,-460.0,0.00019621,2]
[372615378,1752706254170,-460.0,0.00019621,2]
[372615379,1752706254179,-365.58483116,0.00019621,2]
[372615380,1752706254395,-557.93,0.00019621,2]
[372615381,1752706254406,-460.0,0.00019621,2]
[372615382,1752706254415,-460.0,0.00019621,2]
[372615383,1752706254424,-569.28,0.00019621,2]
[372615384,1752706254433,-749.45,0.00019621,2]
[372615385,1752706254443,-460.0,0.00019621,2]
[372615386,1752706254452,-460.0,0.00019621,2]
[372615387,1752706254463,-160.0208551,0.00019621,2]
[372615388,1752706254473,-543.28,0.00019621,2]
[372615389,1752706254482,-460.0,0.00019621,2]
[372615390,1752706254492,-460.0,0.00019621,2]
[372615391,1752706254502,-460.0,0.00019621,2]
[372615392,1752706254511,-460.0,0.00019621,2]
[372615393,1752706254520,-460.0,0.00019621,2]
[372615394,1752706254530,-460.0,0.00019621,2]
[372615395,1752706254539,-589.3,0.00019621,2]
[372615396,1752706254548,-460.0,0.00019621,2]
[372615397,1752706254557,-460.0,0.00019621,2]
[372615398,1752706254566,-460.0,0.00019621,2]
[372615399,1752706254576,-460.0,0.00019621,2]
[372615400,1752706254585,-460.0,0.00019621,2]
[372615401,1752706254594,-460.0,0.00019621,2]
[372615402,1752706254603,-484.0,0.00019621,2]
[372615403,1752706254612,-460.0,0.00019621,2]
[372615404,1752706254622,-460.0,0.00019621,2]
[372615405,1752706254631,-460.0,0.00019621,2]
[372615406,1752706254641,-460.0,0.00019621,2]
[372615407,1752706254650,-729.25,0.00019621,2]
[372615408,1752706254659,-460.0,0.00019621,2]
[372615409,1752706254669,-460.0,0.00019621,2]
[372615410,1752706254678,-462.53,0.00019621,2]
[372615411,1752706254687,-460.0,0.00019621,2]
[372615412,1752706254697,-705.11,0.00019621,2]
[372615413,1752706254708,-460.0,0.00019621,2]
[372615414,1752706254718,-544.55514681,0.00019621,2]
[372615415,1752706254728,-460.0,0.00019621,2]
[372615416,1752706254738,-460.0,0.00019621,2]
[372615417,1752706254748,-460.0,0.00019621,2]
[372615418,1752706254757,-460.0,0.00019621,2]
[372615419,1752706254767,-460.0,0.00019621,2]
[372615420,1752706254776,-554.49,0.00019621,2]
[372615421,1752706254786,-365.43552396,0.00019621,2]
[372615422,1752706254795,-460.0,0.00019621,2]
[372615423,1752706254805,-500.0,0.00019621,5]
[372615424,1752706254814,-460.0,0.00019621,2]
[372615425,1752706254823,-599.08914793,0.00019624,2]
[372615426,1752706254833,-167.18,0.00019627,2]
[372615427,1752706254842,-500.0,0.0001963,2]
[372615428,1752706254851,-460.0,0.00019631,2]
[372615429,1752706254860,-460.0,0.00019631,2]
[372615430,1752706254870,-460.0,0.00019631,2]
[372615431,1752706254879,-823.33,0.00019631,2]
[372615432,1752706254888,-460.0,0.00019631,2]
[372615433,1752706254897,-460.0,0.00019631,2]
[372615434,1752706254906,-770.07,0.00019631,2]
[372615435,1752706254916,-555.93,0.00019631,2]
[372615436,1752706254926,-768.97,0.00019631,2]
[372615437,1752706254935,-2030.98,0.00019631,2]
[372615438,1752706254944,-460.0,0.00019631,2]
[372615439,1752706254955,-826.17,0.00019631,2]
[372615440,1752706254964,-460.0,0.00019631,2]
[372615441,1752706254974,-460.0,0.00019631,2]
[372615442,1752706254983,-460.0,0.00019631,2]
[372615443,1752706254993,-460.0,0.00019631,2]
[372615444,1752706255002,-781.79,0.00019631,2]
[372615445,1752706255011,-1026.26,0.00019631,2]
[372615446,1752706255021,-496.56,0.00019631,2]
[372615447,1752706255030,-573.21,0.00019631,2]
[372615448,1752706255041,-460.0,0.00019631,2]
[372615449,1752706255051,-460.0,0.00019631,2]
[372615450,1752706255061,-498.59,0.00019631,2]
[372615451,1752706255071,-460.0,0.00019631,2]
[372615452,1752706255081,-970.93,0.00019631,2]
[372615453,1752706255091,-689.24,0.00019631,2]
[372615454,1752706255106,-460.0,0.00019631,2]
[372615455,1752706255116,-460.2,0.00019631,2]
[372615456,1752706255126,-724.87,0.00019631,2]
[372615457,1752706255135,-460.0,0.00019631,2]
[372615458,1752706255145,-688.29,0.00019631,2]
[372615459,1752706255155,-460.0,0.00019631,2]
[372615460,1752706255164,-460.0,0.00019631,2]
[372615461,1752706255174,-1060.45,0.00019631,2]
[372615462,1752706255183,-874.3,0.00019631,2]
[372615463,1752706255193,-3104.98,0.00019631,2]
[372615464,1752706255202,-460.0,0.00019631,2]
[372615465,1752706255213,-460.0,0.00019631,2]
[372615466,1752706255223,-601.12,0.00019631,2]
[372615467,1752706255232,-460.0,0.00019631,2]
[372615468,1752706255244,-460.0,0.00019631,2]
[372615469,1752706255254,-582.14,0.00019631,2]
[372615470,1752706255264,-531.93,0.00019631,2]
[372615471,1752706255274,-529.93,0.00019631,2]
[372615472,1752706255287,-460.87566142,0.00019631,2]
[372615473,1752706255297,-460.0,0.00019631,2]
[372615474,1752706255306,-1285.9,0.00019631,2]
[372615475,1752706255317,-338.13819307,0.00019631,2]
[372615476,1752706255327,-460.0,0.00019631,2]
[372615477,1752706255337,-460.0,0.00019631,2]
[372615478,1752706255347,-718.19,0.00019631,2]
[372615479,1752706255358,-460.0,0.00019631,2]
[372615480,1752706255369,-462.27567643,0.00019631,2]
[372615481,1752706255379,-460.0,0.00019631,2]
[372615482,1752706255389,-465.10079346,0.00019631,2]
[372615483,1752706255400,-460.0,0.00019631,2]
[372615484,1752706255411,-460.0,0.00019631,2]
[372615485,1752706255421,-460.0,0.00019631,2]
[372615486,1752706255431,-460.0,0.00019631,2]
[372615487,1752706255440,-503.8,0.00019631,2]
[372615488,1752706255450,-460.0,0.00019631,2]
[372615489,1752706255460,-460.0,0.00019631,2]
[372615490,1752706255470,-525.46215079,0.00019631,2]
[372615491,1752706255481,-460.0,0.00019631,2]
[372615492,1752706255491,-460.0,0.00019631,2]
[372615493,1752706255502,-460.0,0.00019631,2]
[372615494,1752706255512,-974.93,0.00019631,2]
[372615495,1752706255522,-465.83195954,0.00019631,2]
[372615496,1752706255532,-899.56,0.00019631,2]
[372615497,1752706255542,-461.10849675,0.00019631,2]
[372615498,1752706255551,-587.28,0.00019631,2]
[372615499,1752706255561,-460.97307454,0.00019631,2]
[372615500,1752706255570,-462.48497575,0.00019631,2]
[372615501,1752706255579,-460.0,0.00019631,2]
[372615502,1752706255590,-769.06,0.00019631,2]
[372615503,1752706255599,-460.0,0.00019631,2]
[372615504,1752706255608,-460.0,0.00019631,2]
[372615505,1752706255619,-460.0,0.00019631,2]
[372615506,1752706255628,-460.0,0.00019631,2]
[372615507,1752706255638,-754.62,0.00019631,2]
[372615508,1752706255647,-460.0,0.00019631,2]
[372615509,1752706255656,-490.59903826,0.00019631,2]
[372615510,1752706255666,-460.0,0.00019631,2]
[372615511,1752706255675,-501.9,0.00019631,2]
[372615512,1752706255684,-1061.87,0.00019631,2]
[372615513,1752706255694,-460.0,0.00019631,2]
[372615514,1752706255703,-1459.94,0.00019631,2]
[372615515,1752706255713,-460.0,0.00019631,2]
[372615516,1752706255723,-460.0,0.00019631,2]
[372615517,1752706255734,-547.19546923,0.00019631,2]
[372615518,1752706255746,-924.37,0.00019631,2]
[372615519,1752706255758,-460.0,0.00019631,2]
[372615520,1752706255768,-1725.17,0.00019631,2]
[372615521,1752706255779,-1498.59,0.00019631,2]
[372615522,1752706255791,-460.0,0.00019631,2]
[372615523,1752706255802,-2567.8,0.00019631,2]
[372615524,1752706255811,-1639.67,0.00019631,2]
[372615525,1752706255821,-460.0,0.00019631,2]
[372615526,1752706255831,-957.87,0.00019631,2]
[372615527,1752706255842,-151.0,0.00019631,2]
[372615528,1752706255852,-513.76,0.00019631,2]
[372615529,1752706255861,-460.0,0.00019631,2]
[372615530,1752706255871,-1487.36,0.00019631,2]
[372615531,1752706255880,-515.5,0.00019631,2]
[372615532,1752706255889,-1303.85,0.00019631,2]
[372615533,1752706255899,-522.46,0.00019631,2]
[372615534,1752706255908,-856.61,0.00019631,2]
[372615535,1752706255918,-460.0,0.00019631,2]
[372615536,1752706255927,-1383.96,0.00019631,2]
[372615537,1752706255936,-799.38,0.00019631,2]
[372615538,1752706255947,-460.0,0.00019631,2]
[372615539,1752706255957,-1862.47,0.00019631,2]
[372615540,1752706255967,-1350.56,0.00019631,2]
[372615541,1752706255978,-501.27,0.00019631,2]
[372615542,1752706255988,-2422.24,0.00019631,2]
[372615543,1752706255997,-504.07,0.00019631,2]
[372615544,1752706256007,-460.0,0.00019631,2]
[372615545,1752706256016,-839.8,0.00019631,2]
[372615546,1752706256025,-151.0,0.00019631,2]
[372615547,1752706256035,-2706.08,0.00019631,2]
[372615548,1752706256045,-460.0,0.00019631,2]
[372615549,1752706256054,-729.31,0.00019631,2]
[372615550,1752706256064,-151.0,0.00019631,2]
[372615551,1752706256073,-151.0,0.00019631,2]
[372615552,1752706256083,-3894.48,0.00019631,2]
[372615553,1752706256092,-1520.32,0.00019631,2]
[372615554,1752706256102,-460.0,0.00019631,2]
[372615555,1752706256111,-151.0,0.00019631,2]
[372615556,1752706256120,-583.93,0.00019631,2]
[372615557,1752706256130,-5076.15,0.00019631,2]
[372615558,1752706256139,-2216.84,0.00019631,2]
[372615559,1752706256149,-842.11,0.00019631,2]
[372615560,1752706256159,-1312.38,0.00019631,2]
[372615561,1752706256168,-1838.52,0.00019631,2]
[372615562,1752706256178,-258.97238,0.00019631,2]
[372615563,1752706256188,-258.97238,0.00019631,2]
[372615564,1752706256198,-2277.51,0.00019631,2]
[372615565,1752706256211,-4059.74,0.00019631,2]
[372615566,1752706256221,-1219.6,0.00019631,2]
[372615567,1752706256231,-596.28,0.00019631,2]
[372615568,1752706256242,-1821.99,0.00019631,2]
[372615569,1752706256251,-4026.6,0.00019631,2]
[372615570,1752706256264,-2157.26,0.00019631,2]
[372615571,1752706256274,-439.664381,0.00019631,2]
[372615572,1752706256283,-151.0,0.00019631,2]
[372615573,1752706256292,-439.664381,0.00019631,2]
[372615574,1752706256302,-460.0,0.00019631,2]